fUST/lending_fUST_20250311
["ID","MTS","AMOUNT","RATE_DAILY","PERIOD"]
[355849005,1741634834494,-634.94,0.00052876,120]
[355849007,1741634834563,-500.0,0.00052876,120]
[355849009,1741634834630,-1529.78,0.00052876,120]
[355849011,1741634834692,-500.0,0.00052876,120]
[355849013,1741634834760,-610.48,0.00052876,120]
[355849015,1741634834827,-559.14954904,0.00052876,120]
[355849017,1741634834893,-4845.92,0.00052876,120]
[355849019,1741634834961,-637.0,0.00052876,120]
[355849020,1741634835030,-582.66946437,0.00052876,120]
[355849023,1741634835119,-996.35,0.00052876,120]
[355849025,1741634835199,-2013.49,0.00052876,120]
[355849027,1741634835279,-500.0,0.00052876,120]
[355849029,1741634835359,-932.97,0.00052876,120]
[355849031,1741634835433,-4678.54,0.00052876,120]
[355849033,1741634835507,-500.0,0.00052876,120]
[355849035,1741634835575,-5617.34,0.00052876,120]
[355849037,1741634835642,-3648.52,0.00052876,120]
[355849039,1741634835706,-760.85,0.00052876,120]
[355849041,1741634835774,-1071.61,0.00052876,120]
[355849043,1741634835838,-500.0,0.00052876,120]
[355849045,1741634835908,-500.0,0.00052876,120]
[355849047,1741634835976,-500.0,0.00052876,120]
[355849049,1741634836041,-1343.82,0.00052876,120]
[355849051,1741634836110,-1206.47,0.00052876,120]
[355849053,1741634836179,-898.89,0.00052876,120]
[355849055,1741634836249,-3411.55,0.00052876,120]
[355849057,1741634836322,-12509.02,0.00052876,120]
[355849059,1741634836394,-705.81,0.00052876,120]
[355849061,1741634836466,-710.74,0.00052876,120]
[355849063,1741634836532,-500.0,0.00052876,120]
[355849065,1741634836603,-2771.86,0.00052876,120]
[355849067,1741634836670,-5657.78,0.00052876,120]
[355849069,1741634836739,-796.29,0.00052876,120]
[355849071,1741634836814,-500.0,0.00052876,120]
[355849073,1741634836881,-5551.46,0.00052876,120]
[355849074,1741634836947,-500.0,0.00052876,120]
[355849076,1741634837023,-2183.17,0.00052876,120]
[355849079,1741634837096,-1240.41,0.00052876,120]
[355849080,1741634837171,-1508.14,0.00052876,120]
[355849083,1741634837249,-500.0,0.00052876,120]
[355849085,1741634837321,-505.42,0.00052876,120]
[355849089,1741634837539,-500.0,0.00052876,120]
[355849091,1741634837611,-500.0,0.00052876,120]
[355849093,1741634837666,-8620.18,0.00052876,120]
[355849095,1741634837722,-1144.04,0.00052876,120]
[355849097,1741634837778,-533.28,0.00052876,120]
[355849099,1741634837842,-1231.57,0.00052876,120]
[355849101,1741634837899,-500.0,0.00052876,120]
[355849103,1741634837957,-500.0,0.00052876,120]
[355849105,1741634838017,-500.0,0.00052876,120]
[355849107,1741634838085,-562.15,0.00052876,120]
[355849109,1741634838147,-500.0,0.00052876,120]
[355849111,1741634838208,-3093.79,0.00052876,120]
[355849113,1741634838270,-865.06,0.00052876,120]
[355849115,1741634838334,-1650.67,0.00052876,120]
[355849117,1741634838386,-655.45842754,0.00052885,97]
[355849119,1741634838440,-949.0,0.00052898,120]
[355849121,1741634838504,-949.0,0.00052898,120]
[355849123,1741634838572,-22271.4889975,0.00052985,90]
[355849124,1741634838640,-655.45842754,0.00052985,100]
[355849126,1741634838709,-5221.55548563,0.00053,120]
[355849128,1741634838771,-1053.27,0.00053,30]
[355849130,1741634838834,-2061.78,0.00053,30]
[355849132,1741634838894,-12580.83,0.00053,30]
[355849134,1741634838958,-348.09,0.00053,30]
[355849135,1741634839033,-2217.472,0.00053045,30]
[355849137,1741634839108,-655.45842754,0.00053085,90]
[355849139,1741634839176,-301.29076014,0.0005315,120]
[355849141,1741634839245,-500.0,0.0005315,120]
[355849143,1741634839314,-500.0,0.0005315,120]
[355849144,1741634839374,-722.09,0.0005315,120]
[355849146,1741634839438,-637.17,0.0005315,120]
[355849148,1741634839496,-966.69,0.0005315,120]
[355849150,1741634839560,-500.0,0.0005315,120]
[355849152,1741634839617,-500.0,0.0005315,120]
[355849154,1741634839673,-500.0,0.0005315,120]
[355849156,1741634839730,-930.98,0.0005315,120]
[355849157,1741634839803,-500.0,0.0005315,120]
[355849159,1741634839866,-500.0,0.0005315,120]
[355849161,1741634839933,-941.74,0.0005315,120]
[355849163,1741634839995,-628.95,0.0005315,120]
[355849165,1741634840059,-510.55211044,0.0005315,120]
[355849167,1741634840122,-500.0,0.0005315,120]
[355849169,1741634840191,-707.99,0.0005315,120]
[355849171,1741634840247,-590.09,0.0005315,120]
[355849172,1741634840315,-666.63,0.0005315,120]
[355849174,1741634840376,-990.23,0.0005315,120]
[355849176,1741634840435,-1039.72,0.0005315,120]
[355849178,1741634840490,-500.0,0.0005315,120]
[355849180,1741634840553,-821.71,0.0005315,120]
[355849182,1741634840619,-671.85,0.0005315,120]
[355849184,1741634840690,-662.81,0.0005315,120]
[355849186,1741634840746,-500.0,0.0005315,120]
[355849187,1741634840814,-1093.3,0.0005315,120]
[355849189,1741634840876,-500.0,0.0005315,120]
[355849191,1741634840937,-500.0,0.0005315,120]
[355849193,1741634840999,-520.62,0.0005315,120]
[355849195,1741634841062,-723.93,0.0005315,120]
[355849197,1741634841129,-500.0,0.0005315,120]
[355849199,1741634841190,-500.0,0.0005315,120]
[355849200,1741634841250,-500.0,0.0005315,120]
[355849202,1741634841311,-545.41,0.0005315,120]
[355849205,1741634841366,-500.0,0.0005315,120]
[355849207,1741634841423,-500.0,0.0005315,120]
[355849211,1741634841638,-567.29,0.0005315,120]
[355849213,1741634841699,-1069.2,0.0005315,120]
[355849215,1741634841752,-500.0,0.0005315,120]
[355849217,1741634841812,-569.12,0.0005315,120]
[355849218,1741634841875,-500.0,0.0005315,120]
[355849220,1741634841940,-525.57,0.0005315,120]
[355849222,1741634842005,-502.64541453,0.0005315,120]
[355849224,1741634842071,-500.0,0.0005315,120]
[355849226,1741634842135,-500.0,0.0005315,120]
[355849228,1741634842197,-500.0,0.0005315,120]
[355849230,1741634842260,-567.26,0.0005315,120]
[355849232,1741634842315,-1000.0,0.0005315,120]
[355849234,1741634842367,-500.0,0.0005315,120]
[355849236,1741634842420,-161.17543944,0.0005315,120]
[355850086,1741634900655,20818.6003149,0.0002,120]
[355850391,1741634919430,409.24945412,0.00025,4]
[355850475,1741634924701,570.09986218,0.000149,2]
[355850493,1741634925866,917.40424923,0.00026,30]
[355850742,1741634949117,-466.77045757,0.0002806,2]
[355850743,1741634949140,-924.0,0.0003,2]
[355850744,1741634949172,-1768.11113149,0.0003,60]
[355850750,1741634968422,538.31601768,0.00027,45]
[355850786,1741635032383,-583.90604131,0.0003,60]
[355850787,1741635032393,-2068.95935613,0.00031701,2]
[355850788,1741635032404,-156.78,0.00031788,2]
[355850789,1741635032414,-156.78,0.00031791,2]
[355850790,1741635032424,-156.78,0.00031791,2]
[355850791,1741635032434,-156.78,0.00031791,2]
[355850792,1741635032444,-156.78,0.00031791,2]
[355850793,1741635032454,-156.78,0.00031791,2]
[355850794,1741635032464,-400.0,0.00031797,2]
[355850795,1741635032477,-3852.54576718,0.00031801,2]
[355850835,1741635038323,-500.0,0.00031797,2]
[355850837,1741635038333,-159.58505571,0.00031797,2]
[355850839,1741635038344,-500.0,0.00031797,2]
[355850841,1741635038354,-500.0,0.00031797,2]
[355850842,1741635038364,-500.0,0.00031797,2]
[355850843,1741635038375,-552.07544567,0.00031797,2]
[355850844,1741635038385,-500.0,0.00031797,2]
[355850845,1741635038396,-500.0,0.00031797,2]
[355850846,1741635038406,-500.0,0.00031797,2]
[355850847,1741635038417,-500.0,0.00031797,2]
[355850848,1741635038427,-500.0,0.00031797,2]
[355850849,1741635038437,-500.0,0.00031797,2]
[355850851,1741635038447,-500.0,0.00031797,2]
[355850853,1741635038458,-500.0,0.00031797,2]
[355850855,1741635038468,-500.0,0.00031797,2]
[355850857,1741635038480,-500.0,0.00031797,2]
[355850859,1741635038491,-500.0,0.00031797,2]
[355850861,1741635038501,-448.95079112,0.00031797,2]
[355850863,1741635038511,-500.0,0.00031797,2]
[355850865,1741635038521,-287.79988901,0.00031797,2]
[355850867,1741635038530,-500.0,0.00031797,2]
[355850869,1741635038540,-500.0,0.00031797,2]
[355850871,1741635038549,-500.0,0.00031797,2]
[355850873,1741635038558,-500.0,0.00031797,2]
[355850875,1741635038568,-500.0,0.00031797,2]
[355850877,1741635038578,-500.0,0.00031797,2]
[355850878,1741635038587,-500.0,0.00031797,2]
[355850880,1741635038597,-500.0,0.00031797,2]
[355850882,1741635038606,-500.0,0.00031797,2]
[355850884,1741635038617,-500.0,0.00031797,2]
[355850885,1741635038627,-500.0,0.00031797,2]
[355850887,1741635038636,-500.0,0.00031797,2]
[355850889,1741635038646,-500.0,0.00031797,2]
[355850891,1741635038656,-500.0,0.00031797,2]
[355850893,1741635038665,-500.0,0.00031797,2]
[355850895,1741635038675,-500.0,0.00031797,2]
[355850897,1741635038684,-500.0,0.00031797,2]
[355850899,1741635038694,-500.0,0.00031797,2]
[355850901,1741635038704,-500.0,0.00031797,2]
[355850903,1741635038714,-500.0,0.00031797,2]
[355850905,1741635038723,-500.0,0.00031797,2]
[355850907,1741635038737,-500.0,0.00031797,2]
[355850909,1741635038747,-500.0,0.00031797,2]
[355850912,1741635038756,-500.0,0.00031797,2]
[355850913,1741635038766,-500.0,0.00031797,2]
[355850914,1741635038776,-500.0,0.00031797,2]
[355850915,1741635038785,-500.0,0.00031797,2]
[355850916,1741635038795,-500.0,0.00031797,2]
[355850917,1741635038806,-500.0,0.00031797,2]
[355850918,1741635038816,-21047.45423282,0.00031801,2]
[355850919,1741635038825,-537.42474365,0.000319,5]
[355850920,1741635038835,-565.05081881,0.000319,6]
[355850921,1741635038844,-225.271372,0.00032358,2]
[355850922,1741635038853,-560.0,0.00034207,2]
[355850923,1741635038863,-643.4188087,0.00035,120]
[355850924,1741635038872,-200.0,0.00035,30]
[355850925,1741635038881,-2068.95935611,0.00035064,2]
[355850926,1741635038891,-500.0,0.0003508,5]
[355850927,1741635038900,-159.48862658,0.0003508,5]
[355850928,1741635038910,-163.25065279,0.0003508,5]
[355850929,1741635038919,-500.0,0.0003508,5]
[355850930,1741635038929,-503.34918753,0.0003508,5]
[355850931,1741635038938,-500.0,0.0003508,5]
[355850932,1741635038948,-500.0,0.0003508,2]
[355850933,1741635038957,-500.0,0.0003508,5]
[355850934,1741635038967,-500.0,0.0003508,5]
[355850935,1741635038979,-508.53299746,0.0003508,2]
[355850936,1741635038989,-253.15590853,0.0003508,5]
[355850937,1741635038999,-500.0,0.0003508,5]
[355850938,1741635039009,-500.0,0.00035105,7]
[355850939,1741635039018,-500.0,0.00035105,7]
[355850940,1741635039028,-171.21037364,0.00035105,7]
[355850941,1741635039038,-233.98647604,0.00035105,7]
[355850942,1741635039048,-171.91049363,0.00035105,7]
[355850943,1741635039058,-253.44921428,0.00035105,7]
[355850944,1741635039068,-2010.24949144,0.00035106,2]
[355850945,1741635039081,-200.0,0.00035106,2]
[355850946,1741635039092,-609.44130798,0.00035616,2]
[355850947,1741635039101,-5069.11192083,0.00036,30]
[355850948,1741635039111,-2068.95935611,0.00038427,2]
[355850949,1741635039122,-5190.70378186,0.000385,3]
[355850950,1741635039132,-500.0,0.000387,5]
[355850951,1741635039141,-500.0,0.000387,5]
[355850952,1741635039151,-2818.56602123,0.0003988,2]
[355850953,1741635039161,-26746.2284002,0.00039989,3]
[355850954,1741635039173,-15568.29314569,0.0003999,3]
[355850955,1741635039182,-26746.2284002,0.0003999,3]
[355850956,1741635039192,-160.0,0.0003999,3]
[355850957,1741635039201,-416.66666667,0.0003999,3]
[355850958,1741635039211,-13121.57,0.00039999,120]
[355850959,1741635039221,-12165.03712133,0.0004,2]
[355850960,1741635039243,-38904.79806626,0.0004,2]
[355850961,1741635039256,-17530.16481241,0.0004,2]
[355850962,1741635039266,-229.09,0.0004,30]
[355850963,1741635039275,-30121.39661278,0.0004,120]
[355850964,1741635039284,-1258.08,0.0004,30]
[355850965,1741635039294,-174.05,0.0004,30]
[355850966,1741635039303,-1599.62,0.0004,30]
[355850967,1741635039313,-210.65,0.0004,30]
[355850968,1741635039322,-377.13208451,0.00040017,2]
[355850969,1741635039331,-15568.29314569,0.00040145,2]
[355850970,1741635039341,-160.0,0.00040145,2]
[355850971,1741635039351,-500.0,0.00040559,5]
[355850972,1741635039361,-1000.0,0.00040559,5]
[355850973,1741635039370,-1000.0,0.00040559,2]
[355850974,1741635039379,-1000.0,0.00040559,5]
[355850975,1741635039389,-1000.0,0.00040559,5]
[355850976,1741635039398,-500.0,0.00040559,5]
[355850977,1741635039407,-26746.2284002,0.00041633,3]
[355850978,1741635039417,-13121.57,0.00041643,120]
[355850979,1741635039426,-157.51,0.000417,30]
[355850980,1741635039435,-2068.95935611,0.0004179,28]
[355850981,1741635039445,-13121.57,0.00043287,120]
[355850982,1741635039454,-1000.0,0.00044179,10]
[355850983,1741635039464,-13121.57,0.00044931,120]
[355850984,1741635039473,-2068.95935611,0.00045153,28]
[355850985,1741635039489,-1750.0,0.00046,2]
[355850986,1741635039499,-1258.08,0.00046,30]
[355850987,1741635039509,-1599.62,0.00046,30]
[355850988,1741635039519,-210.65,0.00046,30]
[355850989,1741635039529,-151.0,0.000463,23]
[355850990,1741635039539,-1426.79023234,0.00046336,2]
[355850991,1741635039548,-500.0,0.00046372,7]
[355850992,1741635039558,-151.0,0.00046418,2]
[355850993,1741635039569,-600.0,0.00046418,2]
[355850994,1741635039579,-150.0,0.00046421,14]
[355850995,1741635039588,-150.0,0.00046421,14]
[355850996,1741635039598,-26746.2284002,0.00046426,4]
[355850997,1741635039608,-500.0,0.00046435,2]
[355850998,1741635039618,-500.0,0.00046435,2]
[355850999,1741635039628,-462.74414582,0.00046435,2]
[355851000,1741635039637,-189.54,0.00046435,30]
[355851001,1741635039647,-106984.913601,0.00046436,4]
[355851002,1741635039657,-222000.0,0.00046446,2]
[355851003,1741635039666,-622.2,0.00046473,2]
[355851004,1741635039676,-576.15,0.000465,30]
[355851005,1741635039686,-229.09,0.000465,30]
[355851006,1741635039695,-645.2214,0.00046528,2]
[355851007,1741635039704,-150.0,0.0004653,14]
[355851008,1741635039714,-150.0,0.0004653,14]
[355851009,1741635039724,-45676.3237008,0.0004653,2]
[355851010,1741635039735,-26746.2284002,0.00046565,4]
[355851011,1741635039745,-13121.57,0.00046575,120]
[355851012,1741635039755,-2308.55,0.00046575,2]
[355851013,1741635039765,-669.0945918,0.00046583,2]
[355851014,1741635039774,-693.8510917,0.00046638,2]
[355851015,1741635039784,-719.52358209,0.00046693,2]
[355851016,1741635039793,-746.14595463,0.00046748,2]
[355851017,1741635039803,-500.0,0.00046789,120]
[355851018,1741635039812,-30065.77821193,0.000468,120]
[355851019,1741635039821,-773.75335495,0.00046803,2]
[355851021,1741635039831,-802.38222908,0.00046858,2]
[355851022,1741635039840,-472.58655554,0.000469,120]
[355851023,1741635039849,-472.58655554,0.000469,120]
[355851024,1741635039858,-472.58655554,0.000469,120]
[355851025,1741635039868,-472.58655554,0.000469,120]
[355851026,1741635039878,-472.58655554,0.000469,120]
[355851027,1741635039887,-472.58655554,0.000469,120]
[355851028,1741635039897,-472.58655554,0.000469,120]
[355851029,1741635039906,-472.58655554,0.000469,120]
[355851030,1741635039917,-472.58655554,0.000469,120]
[355851031,1741635039926,-472.58655554,0.000469,120]
[355851032,1741635039936,-472.58655554,0.000469,120]
[355851033,1741635039945,-472.58655554,0.000469,120]
[355851034,1741635039955,-472.58655554,0.000469,120]
[355851035,1741635039965,-472.58655554,0.000469,120]
[355851036,1741635039975,-472.58655554,0.000469,120]
[355851037,1741635039989,-472.58655554,0.000469,120]
[355851039,1741635039998,-472.58655554,0.000469,120]
[355851041,1741635040009,-472.58655554,0.000469,120]
[355851043,1741635040019,-472.58655554,0.000469,120]
[355851044,1741635040029,-472.58,0.000469,120]
[355851045,1741635040038,-1102.70196292,0.000469,120]
[355851047,1741635040048,-1102.70196292,0.000469,120]
[355851048,1741635040058,-1102.70196292,0.000469,120]
[355851051,1741635040119,-1102.70196292,0.000469,120]
[355851053,1741635040129,-1102.70196292,0.000469,120]
[355851054,1741635040139,-1102.70196292,0.000469,120]
[355851056,1741635040150,-1102.70196292,0.000469,120]
[355851058,1741635040161,-1102.70196292,0.000469,120]
[355851060,1741635040173,-1102.70196292,0.000469,120]
[355851062,1741635040183,-1102.70196292,0.000469,120]
[355851064,1741635040192,-1102.70196292,0.000469,120]
[355851065,1741635040201,-1102.70196292,0.000469,120]
[355851066,1741635040209,-1102.70196292,0.000469,120]
[355851067,1741635040222,-1102.70196292,0.000469,120]
[355851068,1741635040234,-1102.70196292,0.000469,120]
[355851070,1741635040243,-1102.70196292,0.000469,120]
[355851072,1741635040252,-1102.70196292,0.000469,120]
[355851073,1741635040262,-1064.97039283,0.000469,120]
[355851074,1741635040271,-1064.97039283,0.000469,120]
[355851075,1741635040281,-1064.97039283,0.000469,120]
[355851076,1741635040290,-1064.97039283,0.000469,120]
[355851078,1741635040299,-1064.97039283,0.000469,120]
[355851079,1741635040309,-1064.97039283,0.000469,120]
[355851080,1741635040318,-1064.97039283,0.000469,120]
[355851081,1741635040328,-1064.97039283,0.000469,120]
[355851082,1741635040337,-1064.97039283,0.000469,120]
[355851083,1741635040347,-1064.97039283,0.000469,120]
[355851084,1741635040357,-1064.97039283,0.000469,120]
[355851085,1741635040367,-1064.97039283,0.000469,120]
[355851086,1741635040376,-1064.97039283,0.000469,120]
[355851087,1741635040385,-1064.97039283,0.000469,120]
[355851088,1741635040394,-1064.97039283,0.000469,120]
[355851089,1741635040403,-1064.97039283,0.000469,120]
[355851090,1741635040413,-1064.97039283,0.000469,120]
[355851091,1741635040423,-1064.97039283,0.000469,120]
[355851092,1741635040433,-1064.97039283,0.000469,120]
[355851093,1741635040442,-1064.97,0.000469,120]
[355851094,1741635040451,-2484.9309166,0.000469,120]
[355851095,1741635040461,-2484.9309166,0.000469,120]
[355851096,1741635040470,-2484.9309166,0.000469,120]
[355851097,1741635040481,-2484.9309166,0.000469,120]
[355851098,1741635040491,-2484.9309166,0.000469,120]
[355851099,1741635040500,-2484.9309166,0.000469,120]
[355851100,1741635040509,-2484.9309166,0.000469,120]
[355851101,1741635040518,-2484.9309166,0.000469,120]
[355851102,1741635040528,-2484.9309166,0.000469,120]
[355851103,1741635040538,-2484.9309166,0.000469,120]
[355851104,1741635040547,-2484.9309166,0.000469,120]
[355851105,1741635040556,-2484.9309166,0.000469,120]
[355851106,1741635040565,-2484.9309166,0.000469,120]
[355851107,1741635040575,-2484.9309166,0.000469,120]
[355851108,1741635040585,-2484.9309166,0.000469,120]
[355851109,1741635040594,-2484.9309166,0.000469,120]
[355851110,1741635040603,-2484.9309166,0.000469,120]
[355851111,1741635040612,-409.67137204,0.000469,120]
[355851112,1741635040622,-409.67137204,0.000469,120]
[355851113,1741635040631,-409.67137204,0.000469,120]
[355851114,1741635040641,-409.67137204,0.000469,120]
[355851115,1741635040651,-409.67137204,0.000469,120]
[355851116,1741635040660,-409.67137204,0.000469,120]
[355851117,1741635040669,-409.67137204,0.000469,120]
[355851118,1741635040680,-409.67137204,0.000469,120]
[355851119,1741635040690,-409.67137204,0.000469,120]
[355851120,1741635040699,-409.67137204,0.000469,120]
[355851121,1741635040709,-409.67137204,0.000469,120]
[355851122,1741635040718,-409.67137204,0.000469,120]
[355851123,1741635040731,-409.67137204,0.000469,120]
[355851124,1741635040741,-409.67137204,0.000469,120]
[355851125,1741635040751,-409.67137204,0.000469,120]
[355851126,1741635040760,-409.67137204,0.000469,120]
[355851127,1741635040770,-409.67137204,0.000469,120]
[355851128,1741635040779,-409.67137204,0.000469,120]
[355851129,1741635040789,-409.67137204,0.000469,120]
[355851130,1741635040799,-409.67,0.000469,120]
[355851131,1741635040808,-955.89986808,0.000469,120]
[355851132,1741635040817,-955.89986808,0.000469,120]
[355851133,1741635040827,-955.89986808,0.000469,120]
[355851134,1741635040836,-955.89986808,0.000469,120]
[355851135,1741635040845,-955.89986808,0.000469,120]
[355851136,1741635040855,-955.89986808,0.000469,120]
[355851137,1741635040864,-955.89986808,0.000469,120]
[355851138,1741635040873,-955.89986808,0.000469,120]
[355851139,1741635040883,-955.89986808,0.000469,120]
[355851140,1741635040892,-955.89986808,0.000469,120]
[355851141,1741635040902,-955.89986808,0.000469,120]
[355851142,1741635040912,-955.89986808,0.000469,120]
[355851143,1741635040921,-955.89986808,0.000469,120]
[355851144,1741635040931,-955.89986808,0.000469,120]
[355851145,1741635040940,-955.89986808,0.000469,120]
[355851146,1741635040950,-955.89986808,0.000469,120]
[355851147,1741635040960,-955.89986808,0.000469,120]
[355851148,1741635040970,-832.07037156,0.00046913,2]
[355851149,1741635040982,-156.587,0.00046966,2]
[355851150,1741635040991,-862.8569753,0.00046968,2]
[355851151,1741635041001,-500.0,0.00046973,10]
[355851152,1741635041011,-500.0,0.00046973,10]
[355851153,1741635041021,-500.0,0.00046973,10]
[355851154,1741635041031,-500.0,0.00046973,10]
[355851155,1741635041040,-500.0,0.00046973,10]
[355851156,1741635041049,-500.0,0.00046973,10]
[355851157,1741635041059,-502.29169795,0.00046973,10]
[355851158,1741635041069,-609.06455129,0.00046973,10]
[355851159,1741635041086,-500.0,0.00046973,10]
[355851160,1741635041095,-506.01145307,0.00046973,10]
[355851161,1741635041106,-500.0,0.00046973,10]
[355851162,1741635041116,-500.0,0.00046973,10]
[355851163,1741635041126,-500.0,0.00046973,10]
[355851164,1741635041136,-500.0,0.00046973,10]
[355851165,1741635041146,-500.0,0.00046973,10]
[355851166,1741635041155,-500.0,0.00046973,10]
[355851167,1741635041165,-500.0,0.00046973,10]
[355851168,1741635041176,-500.0,0.00046973,10]
[355851169,1741635041186,-500.0,0.00046973,10]
[355851170,1741635041195,-250407.04803086,0.00047,120]
[355851171,1741635041205,-187.8958351,0.00047,120]
[355851172,1741635041214,-894.78268339,0.00047023,2]
[355851173,1741635041223,-500.0,0.00047063,120]
[355851174,1741635041235,-927.88964268,0.00047078,2]
[355851175,1741635041244,-93642.11733307,0.00047109,2]
[355851176,1741635041254,-1102.70196292,0.00047332,120]
[355851177,1741635041264,-2484.9309166,0.00047332,120]
[355851178,1741635041273,-955.89986808,0.00047332,120]
[355851179,1741635041282,-500.0,0.0004741,10]
[355851180,1741635041292,-200.0,0.00047497,2]
[355851181,1741635041302,-163.30770999,0.00047514,2]
[355851182,1741635041312,-292.36772071,0.000478,120]
[355851183,1741635041322,-189.54,0.00047805,30]
[355851184,1741635041332,-1102.70196292,0.00047815,120]
[355851185,1741635041341,-2484.9309166,0.00047815,120]
[355851186,1741635041350,-955.89986808,0.00047815,120]
[355851187,1741635041360,-3433.0711422,0.00047897,120]
[355851188,1741635041370,-2441.52756535,0.000479,120]
[355851189,1741635041379,-210.65,0.000479,30]
[355851190,1741635041388,-2308.55,0.00047945,2]
[355851191,1741635041398,-5000.0,0.00047945,10]
[355851192,1741635041408,-3291.1702948,0.00047996,4]
[355851193,1741635041417,-151.0,0.00048,26]
[355851194,1741635041427,-576.15,0.00048,30]
[355851195,1741635041438,-1258.08,0.000482,30]
[355851196,1741635041447,-174.05,0.000482,30]
[355851197,1741635041457,-1599.62,0.000482,30]
[355851198,1741635041467,-11120.21670446,0.00048218,120]
[355851199,1741635041483,-2001.35329554,0.00048218,120]
[355851200,1741635041492,-1102.7,0.00048298,120]
[355851201,1741635041501,-2484.93,0.00048298,120]
[355851202,1741635041511,-955.89,0.00048298,120]
[355851203,1741635041520,-151.0,0.000483,21]
[355851204,1741635041530,-500.0,0.00048321,6]
[355851205,1741635041539,-26746.2284002,0.00048388,4]
[355851206,1741635041548,-1216600.0,0.00048398,120]
[355851207,1741635041557,-229.09,0.000484,30]
[355851208,1741635041567,-500.0,0.00048458,6]
[355851209,1741635041576,-1000.0,0.00048465,2]
[355851210,1741635041586,-342.31,0.00048465,2]
[355851211,1741635041596,-151.0,0.000485,23]
[355851212,1741635041607,-30941.69691724,0.0004851,2]
[355851213,1741635041616,-2068.95935611,0.00048516,28]
[355851214,1741635041626,-225.271372,0.00048537,2]
[355851215,1741635041635,-500.0,0.00048595,6]
[355851216,1741635041644,-500.0,0.00048732,6]
[355851217,1741635041653,-2000.0,0.00048744,4]
[355851218,1741635041663,-935334.66667262,0.00048799,2]
[355851219,1741635041679,-8871.05878097,0.00048799,2]
[355851220,1741635041939,-223.0,0.00048,90]
[355851221,1741635041949,-223.0,0.00048356,90]
[355851222,1741635041958,-121068.98836052,0.00048799,2]
[355851223,1741635041970,-412.03639997,0.00048799,2]
[355851291,1741635043302,-8787.20521993,0.00048799,2]
[355851292,1741635043315,-23446.5,0.00048799,2]
[355851293,1741635043327,-41025.2109216,0.00048799,2]
[355851319,1741635046337,-211.32704735,0.00048539,2]
[355851320,1741635046348,-1764.11424424,0.00048799,2]
[355851321,1741635046451,-785.99,0.00048799,2]
[355851327,1741635271280,-9841.18,0.00039989,120]
[355851328,1741635271345,-500.0,0.00041632,31]
[355851329,1741635271404,-272.10564346,0.00041632,31]
[355851330,1741635271469,-500.0,0.00041632,31]
[355851331,1741635271534,-500.0,0.00041632,31]
[355851332,1741635271601,-500.0,0.00041632,31]
[355851333,1741635271666,-500.0,0.00041632,31]
[355851334,1741635271726,-178.7799889,0.00041632,31]
[355851335,1741635271784,-9841.18,0.00041633,120]
[355851336,1741635271839,-9841.18,0.00043277,120]
[355851337,1741635271893,-9841.18,0.00044921,120]
[355851338,1741635271950,-9841.18,0.00046565,120]
[355851339,1741635272005,-500.0,0.00046575,120]
[355851340,1741635272063,-500.0,0.00046575,120]
[355851341,1741635272126,-158.68167274,0.00046767,120]
[355851342,1741635272187,-500.0,0.00047123,120]
[355851343,1741635272250,-158.68167274,0.0004737,120]
[355851344,1741635272307,-276.70390898,0.00047671,120]
[355851345,1741635272371,-158.68167274,0.00048,120]